[Event "Early-Titled-Tuesday-Blitz-December-26-2023"]
[Site "Chess.com"]
[Date "2023.12.26"]
[Round "9"]
[White "SmirnovTimofey2000"]
[Black "Navyblue1"]
[Result "0-1"]
[WhiteElo "2024"]
[BlackElo "2168"]
[TimeControl "180+1"]
[EndTime "9:45:04 PST"]
[Termination "Navyblue1 won on time"]

1. d4 {[%clk 0:03:00.9]} 1... Nf6 {[%clk 0:02:59.2]} 2. Bf4 {[%clk 0:03:00.5]}
2... c5 {[%clk 0:02:58.2]} 3. e3 {[%clk 0:03:00.4]} 3... Qb6 {[%clk 0:02:57.5]}
4. Nc3 {[%clk 0:03:00.6]} 4... d6 {[%clk 0:02:56.8]} 5. a3 {[%clk 0:02:55.4]}
5... g6 {[%clk 0:02:44.9]} 6. Nf3 {[%clk 0:02:42.7]} 6... Bg7 {[%clk 0:02:42.9]}
7. Be2 {[%clk 0:02:28.9]} 7... O-O {[%clk 0:02:27.1]} 8. O-O {[%clk 0:02:26.5]}
8... Bd7 {[%clk 0:02:14.7]} 9. Rb1 {[%clk 0:02:25]} 9... Qc7 {[%clk 0:02:02.1]}
10. dxc5 {[%clk 0:02:19.7]} 10... Qxc5 {[%clk 0:01:59.8]} 11. Qd3 {[%clk
0:02:00.1]} 11... Bc6 {[%clk 0:01:26.3]} 12. h3 {[%clk 0:01:53.7]} 12... e5
{[%clk 0:01:04.2]} 13. b4 {[%clk 0:01:04.9]} 13... Qb6 {[%clk 0:00:27.3]} 14.
Qxd6 {[%clk 0:00:54.9]} 14... exf4 {[%clk 0:00:24.7]} 15. Qxf4 {[%clk 0:00:48]}
15... a6 {[%clk 0:00:20.5]} 16. Nd4 {[%clk 0:00:39.3]} 16... Nbd7 {[%clk
0:00:19.3]} 17. Qd6 {[%clk 0:00:29.9]} 17... Rfe8 {[%clk 0:00:17.4]} 18. Bg4
{[%clk 0:00:11.9]} 18... Rad8 {[%clk 0:00:16.4]} 19. Bxd7 {[%clk 0:00:11.1]}
19... Rxd7 {[%clk 0:00:16.2]} 20. Qf4 {[%clk 0:00:05.7]} 20... Nd5 {[%clk
0:00:16.3]} 21. Nxd5 {[%clk 0:00:05.7]} 21... Bxd5 {[%clk 0:00:16.5]} 22. Rbd1
{[%clk 0:00:03.3]} 22... Bxd4 {[%clk 0:00:16.7]} 23. exd4 {[%clk 0:00:02.6]}
23... Be6 {[%clk 0:00:16.4]} 24. Qd2 {[%clk 0:00:01.8]} 24... Qc6 {[%clk
0:00:16.2]} 25. c3 {[%clk 0:00:02.2]} 25... Rd5 {[%clk 0:00:16.2]} 26. Rfe1
{[%clk 0:00:01.6]} 26... Rc8 {[%clk 0:00:16.8]} 0-1

[Event "Early-Titled-Tuesday-Blitz-December-26-2023"]
[Site "Chess.com"]
[Date "2023.12.26"]
[Round "9"]
[White "Ramla2020"]
[Black "Let_it_be_1"]
[Result "1/2-1/2"]
[WhiteElo "2463"]
[BlackElo "2556"]
[TimeControl "180+1"]
[EndTime "9:45:09 PST"]
[Termination "Game drawn by agreement"]

1. c4 {[%clk 0:03:00.7]} 1... e6 {[%clk 0:03:00]} 2. d4 {[%clk 0:02:58.9]} 2...
d5 {[%clk 0:03:00.9]} 3. Nf3 {[%clk 0:02:58.9]} 3... Nf6 {[%clk 0:03:00.8]} 4.
Bg5 {[%clk 0:02:58.6]} 4... Be7 {[%clk 0:03:00.4]} 5. e3 {[%clk 0:02:58.3]} 5...
O-O {[%clk 0:02:59.9]} 6. Nc3 {[%clk 0:02:58.2]} 6... Nbd7 {[%clk 0:02:59.5]} 7.
Qc2 {[%clk 0:02:56.7]} 7... c5 {[%clk 0:02:59.2]} 8. cxd5 {[%clk 0:02:54.2]}
8... Nxd5 {[%clk 0:02:58.8]} 9. Bxe7 {[%clk 0:02:52.4]} 9... Qxe7 {[%clk
0:02:58.9]} 10. Be2 {[%clk 0:02:50.3]} 10... cxd4 {[%clk 0:02:46.5]} 11. Nxd4
{[%clk 0:02:49.7]} 11... Nxc3 {[%clk 0:02:40.4]} 12. Qxc3 {[%clk 0:02:48.9]}
12... e5 {[%clk 0:02:36.2]} 13. Nf5 {[%clk 0:02:37]} 13... Qf6 {[%clk
0:02:32.8]} 14. Ng3 {[%clk 0:02:32.1]} 14... Nb6 {[%clk 0:02:17.2]} 15. O-O
{[%clk 0:02:30.9]} 15... Be6 {[%clk 0:02:13.2]} 16. Bf3 {[%clk 0:02:25.1]} 16...
Rfc8 {[%clk 0:01:55.2]} 17. Ne4 {[%clk 0:02:13.1]} 17... Qf5 {[%clk 0:01:32.9]}
18. Qa5 {[%clk 0:01:36.7]} 18... Nc4 {[%clk 0:01:29]} 19. Qb4 {[%clk 0:01:32.1]}
19... Qg6 {[%clk 0:01:09.9]} 20. b3 {[%clk 0:01:25.1]} 20... Bd5 {[%clk
0:01:02.3]} 21. Ng3 {[%clk 0:00:56.5]} 21... a5 {[%clk 0:00:54]} 22. Qe1 {[%clk
0:00:41.6]} 22... Bxf3 {[%clk 0:00:50.9]} 23. gxf3 {[%clk 0:00:42.5]} 23... Nb2
{[%clk 0:00:39.6]} 24. Rc1 {[%clk 0:00:38]} 24... b6 {[%clk 0:00:34.2]} 25. Qd2
{[%clk 0:00:35.6]} 25... Nd3 {[%clk 0:00:31.1]} 26. Rxc8+ {[%clk 0:00:27.9]}
26... Rxc8 {[%clk 0:00:30.3]} 27. Rd1 {[%clk 0:00:28]} 27... Rd8 {[%clk
0:00:27.9]} 28. Kf1 {[%clk 0:00:20.7]} 28... h5 {[%clk 0:00:27.7]} 29. Qe2
{[%clk 0:00:16.3]} 29... Rd7 {[%clk 0:00:21.3]} 30. Ne4 {[%clk 0:00:15.9]} 30...
Nc5 {[%clk 0:00:19.3]} 31. Nxc5 {[%clk 0:00:15.5]} 31... Rxd1+ {[%clk
0:00:18.4]} 32. Qxd1 {[%clk 0:00:16.4]} 32... bxc5 {[%clk 0:00:19.1]} 33. Qd8+
{[%clk 0:00:16.8]} 33... Kh7 {[%clk 0:00:19.3]} 34. Qxa5 {[%clk 0:00:17.5]}
34... Qb1+ {[%clk 0:00:18.2]} 35. Kg2 {[%clk 0:00:17.5]} 1/2-1/2

[Event "Early-Titled-Tuesday-Blitz-December-26-2023"]
[Site "Chess.com"]
[Date "2023.12.26"]
[Round "9"]
[White "Jospem"]
[Black "Zhigalko_Sergei"]
[Result "1-0"]
[WhiteElo "3077"]
[BlackElo "2904"]
[TimeControl "180+1"]
[EndTime "9:45:15 PST"]
[Termination "Jospem won by checkmate"]

1. e4 {[%clk 0:03:00.9]} 1... c5 {[%clk 0:02:59.5]} 2. Nc3 {[%clk 0:03:00.3]}
2... Nc6 {[%clk 0:02:59.9]} 3. Bb5 {[%clk 0:03:00.5]} 3... Nd4 {[%clk
0:03:00.3]} 4. Nf3 {[%clk 0:02:59.8]} 4... e6 {[%clk 0:03:00.6]} 5. Bd3 {[%clk
0:02:49.9]} 5... Nxf3+ {[%clk 0:02:56.8]} 6. Qxf3 {[%clk 0:02:49.5]} 6... Bd6
{[%clk 0:02:49.4]} 7. Bc4 {[%clk 0:02:46.9]} 7... Ne7 {[%clk 0:02:46.2]} 8. d3
{[%clk 0:02:46.1]} 8... Ng6 {[%clk 0:02:44.6]} 9. O-O {[%clk 0:02:40.5]} 9... a6
{[%clk 0:02:41.1]} 10. a4 {[%clk 0:02:40]} 10... Qc7 {[%clk 0:02:40]} 11. g3
{[%clk 0:02:32.8]} 11... O-O {[%clk 0:02:36.7]} 12. Qh5 {[%clk 0:02:27.6]} 12...
Be5 {[%clk 0:02:18.9]} 13. Be3 {[%clk 0:02:21.8]} 13... Bd4 {[%clk 0:01:18.2]}
14. Bxd4 {[%clk 0:02:16]} 14... cxd4 {[%clk 0:01:19.1]} 15. Ne2 {[%clk
0:02:16.5]} 15... Ne5 {[%clk 0:01:19.4]} 16. Bb3 {[%clk 0:02:05.3]} 16... Nc6
{[%clk 0:00:49.1]} 17. f4 {[%clk 0:01:52.3]} 17... g6 {[%clk 0:00:49.1]} 18. Qg5
{[%clk 0:01:43.6]} 18... f5 {[%clk 0:00:42.5]} 19. g4 {[%clk 0:01:23.2]} 19...
Kh8 {[%clk 0:00:36.2]} 20. Ng3 {[%clk 0:01:17.6]} 20... d6 {[%clk 0:00:31.4]}
21. Rae1 {[%clk 0:01:12]} 21... Qg7 {[%clk 0:00:30]} 22. gxf5 {[%clk 0:00:41.1]}
22... exf5 {[%clk 0:00:29.8]} 23. Rf2 {[%clk 0:00:35]} 23... Bd7 {[%clk
0:00:24.2]} 24. exf5 {[%clk 0:00:30.4]} 24... Bxf5 {[%clk 0:00:22.4]} 25. Rfe2
{[%clk 0:00:30.5]} 25... Bh3 {[%clk 0:00:13]} 26. Qh4 {[%clk 0:00:25.1]} 26...
Bf5 {[%clk 0:00:05.7]} 27. Bd5 {[%clk 0:00:17.1]} 27... Rac8 {[%clk 0:00:01.7]}
28. Bxc6 {[%clk 0:00:17.3]} 28... bxc6 {[%clk 0:00:02]} 29. Re7 {[%clk
0:00:17.7]} 29... Rf7 {[%clk 0:00:02.5]} 30. Rxf7 {[%clk 0:00:18.2]} 30... Qxf7
{[%clk 0:00:03.4]} 31. Re7 {[%clk 0:00:17.1]} 31... g5 {[%clk 0:00:02.6]} 32.
Rxf7 {[%clk 0:00:17.3]} 32... gxh4 {[%clk 0:00:03]} 33. Nxf5 {[%clk 0:00:17.9]}
33... Rf8 {[%clk 0:00:02.5]} 34. Rxf8# {[%clk 0:00:18.1]} 1-0

[Event "Early-Titled-Tuesday-Blitz-December-26-2023"]
[Site "Chess.com"]
[Date "2023.12.26"]
[Round "9"]
[White "Alex_Banzea"]
[Black "Matic_Nareks"]
[Result "1/2-1/2"]
[WhiteElo "2637"]
[BlackElo "2504"]
[TimeControl "180+1"]
[EndTime "9:45:15 PST"]
[Termination "Game drawn by repetition"]

1. d4 {[%clk 0:03:00.9]} 1... d6 {[%clk 0:03:00]} 2. Nc3 {[%clk 0:02:59.9]} 2...
Nf6 {[%clk 0:02:59.4]} 3. e4 {[%clk 0:03:00.5]} 3... e5 {[%clk 0:02:59.4]} 4.
Nge2 {[%clk 0:03:00.1]} 4... Nbd7 {[%clk 0:02:55.5]} 5. h3 {[%clk 0:02:56.7]}
5... d5 {[%clk 0:02:54.2]} 6. exd5 {[%clk 0:02:40.9]} 6... exd4 {[%clk
0:02:51.8]} 7. Nxd4 {[%clk 0:02:39.8]} 7... Bb4 {[%clk 0:02:51.1]} 8. Ne2 {[%clk
0:02:29.6]} 8... O-O {[%clk 0:02:50.2]} 9. a3 {[%clk 0:02:30.2]} 9... Bxc3+
{[%clk 0:02:44.8]} 10. Nxc3 {[%clk 0:02:29.7]} 10... Re8+ {[%clk 0:02:45.2]} 11.
Be2 {[%clk 0:02:29.6]} 11... Nb6 {[%clk 0:02:43.9]} 12. Bg5 {[%clk 0:02:21.2]}
12... h6 {[%clk 0:02:43.6]} 13. Bh4 {[%clk 0:02:08.9]} 13... g5 {[%clk
0:02:38.5]} 14. Bg3 {[%clk 0:02:09]} 14... Nfxd5 {[%clk 0:02:31.8]} 15. Nxd5
{[%clk 0:02:01.4]} 15... Qxd5 {[%clk 0:02:32.7]} 16. O-O {[%clk 0:01:17.2]}
16... c6 {[%clk 0:02:31.6]} 17. Bf3 {[%clk 0:01:12.4]} 17... Qxd1 {[%clk
0:02:29.7]} 18. Raxd1 {[%clk 0:01:12.7]} 18... Bf5 {[%clk 0:02:30.6]} 19. Rd2
{[%clk 0:01:09]} 19... Rad8 {[%clk 0:02:27.8]} 20. Rfd1 {[%clk 0:00:58.2]} 20...
Rxd2 {[%clk 0:02:27]} 21. Rxd2 {[%clk 0:00:59.1]} 21... Nc4 {[%clk 0:02:27.5]}
22. Rd4 {[%clk 0:00:59.6]} 22... Nb6 {[%clk 0:02:06]} 23. c4 {[%clk 0:00:50.8]}
23... Be6 {[%clk 0:02:04.7]} 24. b3 {[%clk 0:00:50.4]} 24... Nd7 {[%clk
0:01:56.5]} 25. b4 {[%clk 0:00:40.6]} 25... Nb6 {[%clk 0:01:48.5]} 26. Be2
{[%clk 0:00:40.7]} 26... Re7 {[%clk 0:01:45]} 27. Kf1 {[%clk 0:00:36.5]} 27...
Rd7 {[%clk 0:01:43.8]} 28. Rxd7 {[%clk 0:00:34.5]} 28... Nxd7 {[%clk 0:01:40.6]}
29. c5 {[%clk 0:00:32.2]} 29... a6 {[%clk 0:01:39.2]} 30. Ke1 {[%clk 0:00:29.5]}
30... f5 {[%clk 0:01:37.2]} 31. Bd6 {[%clk 0:00:24.2]} 31... Kf7 {[%clk
0:01:36.7]} 32. Kd2 {[%clk 0:00:23.8]} 32... Bd5 {[%clk 0:01:35.1]} 33. f3
{[%clk 0:00:23.8]} 33... Ke6 {[%clk 0:01:32.7]} 34. Kc3 {[%clk 0:00:21.3]} 34...
Nf6 {[%clk 0:01:25.6]} 35. a4 {[%clk 0:00:16.1]} 35... h5 {[%clk 0:01:25.4]} 36.
b5 {[%clk 0:00:14.5]} 36... axb5 {[%clk 0:01:25]} 37. axb5 {[%clk 0:00:15.1]}
37... g4 {[%clk 0:01:24.9]} 38. b6 {[%clk 0:00:12.8]} 38... gxh3 {[%clk
0:01:16.7]} 39. gxh3 {[%clk 0:00:13.7]} 39... Nd7 {[%clk 0:01:16.9]} 40. Kd4
{[%clk 0:00:13.7]} 40... Nxb6 {[%clk 0:01:16.3]} 41. h4 {[%clk 0:00:04.8]} 41...
Nc8 {[%clk 0:01:13.8]} 42. Bg3 {[%clk 0:00:04]} 42... Kf6 {[%clk 0:01:09]} 43.
f4 {[%clk 0:00:03]} 43... Bf7 {[%clk 0:01:09]} 44. Be1 {[%clk 0:00:02]} 44...
Ne7 {[%clk 0:01:04.6]} 45. Bc3 {[%clk 0:00:01.9]} 45... Nd5 {[%clk 0:01:03.3]}
46. Bd2 {[%clk 0:00:02.5]} 46... Ke6 {[%clk 0:01:03.1]} 47. Bc4 {[%clk
0:00:02.7]} 47... Be8 {[%clk 0:01:01.6]} 48. Bxd5+ {[%clk 0:00:03.6]} 48... cxd5
{[%clk 0:01:01.9]} 49. Be1 {[%clk 0:00:04.2]} 49... Bb5 {[%clk 0:01:02]} 50. Bd2
{[%clk 0:00:04.7]} 50... Bc4 {[%clk 0:01:01.6]} 51. Be1 {[%clk 0:00:05.3]} 51...
Bb5 {[%clk 0:01:00.8]} 52. Bc3 {[%clk 0:00:06]} 52... Bc6 {[%clk 0:01:01.1]} 53.
Bd2 {[%clk 0:00:06.7]} 53... Bb5 {[%clk 0:00:59.6]} 54. Bc3 {[%clk 0:00:07.3]}
54... Bc6 {[%clk 0:01:00.2]} 55. Bd2 {[%clk 0:00:07.9]} 55... Bb5 {[%clk
0:01:00.8]} 56. Bc3 {[%clk 0:00:08.7]} 1/2-1/2

[Event "Early-Titled-Tuesday-Blitz-December-26-2023"]
[Site "Chess.com"]
[Date "2023.12.26"]
[Round "9"]
[White "missponyo10"]
[Black "nitpicker"]
[Result "1-0"]
[WhiteElo "2256"]
[BlackElo "2288"]
[TimeControl "180+1"]
[EndTime "9:45:15 PST"]
[Termination "missponyo10 won on time"]

1. e4 {[%clk 0:03:00.9]} 1... c5 {[%clk 0:02:59.6]} 2. Nf3 {[%clk 0:03:00.9]}
2... Nc6 {[%clk 0:02:58.5]} 3. d3 {[%clk 0:03:01.1]} 3... g6 {[%clk 0:02:57.2]}
4. Nbd2 {[%clk 0:03:02]} 4... Bg7 {[%clk 0:02:57.4]} 5. g3 {[%clk 0:03:02.6]}
5... e5 {[%clk 0:02:56.3]} 6. Bg2 {[%clk 0:03:02.9]} 6... Nge7 {[%clk 0:02:56]}
7. O-O {[%clk 0:03:02.8]} 7... O-O {[%clk 0:02:56]} 8. Re1 {[%clk 0:03:03.5]}
8... h6 {[%clk 0:02:55.3]} 9. Nf1 {[%clk 0:03:03.8]} 9... d5 {[%clk 0:02:47.8]}
10. exd5 {[%clk 0:03:03]} 10... Nxd5 {[%clk 0:02:47.5]} 11. Ne3 {[%clk
0:03:02.2]} 11... Nde7 {[%clk 0:02:40.2]} 12. c3 {[%clk 0:02:58.2]} 12... Be6
{[%clk 0:02:36.8]} 13. Qc2 {[%clk 0:02:58.1]} 13... Qd7 {[%clk 0:02:27.6]} 14.
b3 {[%clk 0:02:57.7]} 14... Rad8 {[%clk 0:02:24.9]} 15. Rd1 {[%clk 0:02:56]}
15... f5 {[%clk 0:02:18.7]} 16. Bb2 {[%clk 0:02:52.4]} 16... Rf7 {[%clk
0:02:16.3]} 17. Qe2 {[%clk 0:02:45.6]} 17... Rdf8 {[%clk 0:02:00.8]} 18. Nc2
{[%clk 0:02:40.3]} 18... f4 {[%clk 0:01:52.1]} 19. d4 {[%clk 0:02:37.5]} 19...
Bg4 {[%clk 0:01:44.9]} 20. dxe5 {[%clk 0:02:12.9]} 20... Qf5 {[%clk 0:01:43.4]}
21. e6 {[%clk 0:02:10.5]} 21... Rf6 {[%clk 0:01:37.4]} 22. Rf1 {[%clk 0:01:51]}
22... Qh5 {[%clk 0:01:12.5]} 23. Nce1 {[%clk 0:01:26.5]} 23... Rxe6 {[%clk
0:00:56.8]} 24. Qc4 {[%clk 0:01:23.2]} 24... Kh7 {[%clk 0:00:48.9]} 25. Rd1
{[%clk 0:01:12]} 25... Rxe1 {[%clk 0:00:42.2]} 26. Rdxe1 {[%clk 0:01:07.3]}
26... Bxf3 {[%clk 0:00:39.4]} 27. Bxf3 {[%clk 0:01:07.6]} 27... Qxf3 {[%clk
0:00:39.5]} 28. Qe4 {[%clk 0:01:07.9]} 28... Qxe4 {[%clk 0:00:26.9]} 29. Rxe4
{[%clk 0:01:08.8]} 29... Nd5 {[%clk 0:00:27.3]} 30. Rc1 {[%clk 0:01:03.3]} 30...
b5 {[%clk 0:00:24.1]} 31. Ba1 {[%clk 0:01:01]} 31... f3 {[%clk 0:00:20.8]} 32.
c4 {[%clk 0:00:59.9]} 32... bxc4 {[%clk 0:00:16.5]} 33. Bxg7 {[%clk 0:00:58.6]}
33... Kxg7 {[%clk 0:00:15.3]} 34. Rcxc4 {[%clk 0:00:59.2]} 34... Nb6 {[%clk
0:00:13.5]} 35. Rxc5 {[%clk 0:00:59.3]} 35... Nd8 {[%clk 0:00:11.3]} 36. Rc7+
{[%clk 0:00:58.3]} 36... Rf7 {[%clk 0:00:10.8]} 37. Ree7 {[%clk 0:00:57.6]}
37... Kf8 {[%clk 0:00:09.4]} 38. Rxf7+ {[%clk 0:00:57.7]} 38... Nxf7 {[%clk
0:00:10.1]} 39. Rxa7 {[%clk 0:00:58.2]} 39... Ne5 {[%clk 0:00:09.7]} 40. a4
{[%clk 0:00:58.4]} 40... Nd5 {[%clk 0:00:09.1]} 41. a5 {[%clk 0:00:58.4]} 41...
Nb4 {[%clk 0:00:08.7]} 42. Ra8+ {[%clk 0:00:57.6]} 42... Ke7 {[%clk 0:00:08.8]}
43. a6 {[%clk 0:00:57.8]} 43... Nd7 {[%clk 0:00:08.3]} 44. a7 {[%clk 0:00:57.5]}
44... Kd6 {[%clk 0:00:05.6]} 45. Rd8 {[%clk 0:00:56.9]} 1-0

[Event "Early-Titled-Tuesday-Blitz-December-26-2023"]
[Site "Chess.com"]
[Date "2023.12.26"]
[Round "9"]
[White "hsd2016"]
[Black "The_Straightforward_Rook"]
[Result "1/2-1/2"]
[WhiteElo "2249"]
[BlackElo "2479"]
[TimeControl "180+1"]
[EndTime "9:45:19 PST"]
[Termination "Game drawn - insufficient material"]

1. e4 {[%clk 0:03:00.3]} 1... c6 {[%clk 0:02:55.2]} 2. d4 {[%clk 0:03:00.5]}
2... d5 {[%clk 0:02:53.1]} 3. Nd2 {[%clk 0:02:58.7]} 3... dxe4 {[%clk
0:02:51.8]} 4. Nxe4 {[%clk 0:02:58.6]} 4... Nf6 {[%clk 0:02:52.5]} 5. Nxf6+
{[%clk 0:02:59.1]} 5... exf6 {[%clk 0:02:53.4]} 6. c3 {[%clk 0:02:59.9]} 6...
Bd6 {[%clk 0:02:52.4]} 7. Bd3 {[%clk 0:03:00.6]} 7... O-O {[%clk 0:02:46.5]} 8.
Qc2 {[%clk 0:03:00.5]} 8... h5 {[%clk 0:02:47.1]} 9. Ne2 {[%clk 0:03:00.4]} 9...
Re8 {[%clk 0:02:45.5]} 10. Be3 {[%clk 0:03:00.7]} 10... Na6 {[%clk 0:02:43.8]}
11. O-O-O {[%clk 0:03:00.9]} 11... Nc7 {[%clk 0:02:40.5]} 12. h3 {[%clk
0:03:01.3]} 12... Nd5 {[%clk 0:02:39.1]} 13. Bd2 {[%clk 0:03:01]} 13... b5
{[%clk 0:02:37.5]} 14. Rde1 {[%clk 0:03:01]} 14... a5 {[%clk 0:02:36.2]} 15.
Rhg1 {[%clk 0:03:01.1]} 15... a4 {[%clk 0:02:32.9]} 16. g4 {[%clk 0:03:01.3]}
16... h4 {[%clk 0:02:26.8]} 17. g5 {[%clk 0:03:00.9]} 17... Bxh3 {[%clk
0:02:09]} 18. g6 {[%clk 0:02:40.5]} 18... Re7 {[%clk 0:01:54.5]} 19. gxf7+
{[%clk 0:02:33.8]} 19... Kxf7 {[%clk 0:01:55.4]} 20. Bf5 {[%clk 0:01:56.3]}
20... Bxf5 {[%clk 0:01:49]} 21. Qxf5 {[%clk 0:01:57.2]} 21... Qh8 {[%clk
0:01:43.1]} 22. Nf4 {[%clk 0:01:43.7]} 22... Nxf4 {[%clk 0:01:35.4]} 23. Rxe7+
{[%clk 0:01:41.2]} 23... Kxe7 {[%clk 0:01:30]} 24. Re1+ {[%clk 0:01:38.7]} 24...
Kd8 {[%clk 0:01:29.6]} 25. Bxf4 {[%clk 0:01:35.4]} 25... Bxf4+ {[%clk
0:01:29.4]} 26. Qxf4 {[%clk 0:01:36.3]} 26... Qh6 {[%clk 0:01:29.8]} 27. Qxh6
{[%clk 0:01:36.5]} 27... gxh6 {[%clk 0:01:30.7]} 28. Rh1 {[%clk 0:01:36.2]}
28... Ke7 {[%clk 0:01:26]} 29. Rxh4 {[%clk 0:01:36.5]} 29... Rh8 {[%clk
0:01:26.5]} 30. Kd2 {[%clk 0:01:37]} 30... Ke6 {[%clk 0:01:24.9]} 31. Ke3 {[%clk
0:01:34.8]} 31... Kf5 {[%clk 0:01:24.5]} 32. Rh5+ {[%clk 0:01:34.1]} 32... Kg6
{[%clk 0:01:22.8]} 33. Rc5 {[%clk 0:01:33.1]} 33... Rc8 {[%clk 0:01:19.2]} 34.
Kf4 {[%clk 0:01:29.9]} 34... h5 {[%clk 0:01:16.9]} 35. d5 {[%clk 0:01:29.9]}
35... Kf7 {[%clk 0:01:11]} 36. dxc6 {[%clk 0:01:21.6]} 36... Ke6 {[%clk
0:01:11.3]} 37. Rxh5 {[%clk 0:01:17]} 37... Rxc6 {[%clk 0:01:11.7]} 38. Rxb5
{[%clk 0:01:17.3]} 38... a3 {[%clk 0:01:12.2]} 39. bxa3 {[%clk 0:01:14.8]} 39...
Rxc3 {[%clk 0:01:12.2]} 40. Rb1 {[%clk 0:00:46.8]} 40... Rxa3 {[%clk 0:01:11.3]}
41. Ra1 {[%clk 0:00:45.7]} 41... Ra4+ {[%clk 0:01:11.5]} 42. Ke3 {[%clk
0:00:45.5]} 42... Ke5 {[%clk 0:01:11.8]} 43. a3 {[%clk 0:00:45]} 43... f5 {[%clk
0:01:11.8]} 44. Kd3 {[%clk 0:00:42.9]} 44... Kf4 {[%clk 0:01:11.3]} 45. Kc3
{[%clk 0:00:43.4]} 45... Kf3 {[%clk 0:01:11]} 46. Kb3 {[%clk 0:00:43.6]} 46...
Ra8 {[%clk 0:01:10.7]} 47. Ra2 {[%clk 0:00:43.8]} 47... f4 {[%clk 0:01:09.6]}
48. a4 {[%clk 0:00:44.1]} 48... Rb8+ {[%clk 0:01:10.3]} 49. Kc4 {[%clk
0:00:44.3]} 49... Rc8+ {[%clk 0:01:05]} 50. Kd5 {[%clk 0:00:41.6]} 50... Rd8+
{[%clk 0:00:58.6]} 51. Kc6 {[%clk 0:00:42]} 51... Rc8+ {[%clk 0:00:53.4]} 52.
Kb7 {[%clk 0:00:41.9]} 52... Rc5 {[%clk 0:00:54]} 53. a5 {[%clk 0:00:41.9]}
53... Rxa5 {[%clk 0:00:54]} 54. Rxa5 {[%clk 0:00:41.2]} 54... Kxf2 {[%clk
0:00:54.7]} 55. Kc6 {[%clk 0:00:36.1]} 55... f3 {[%clk 0:00:54.7]} 56. Kd5
{[%clk 0:00:36.8]} 56... Kg2 {[%clk 0:00:55.1]} 57. Ke4 {[%clk 0:00:34.4]} 57...
f2 {[%clk 0:00:55.8]} 58. Ra2 {[%clk 0:00:34.3]} 58... Kg1 {[%clk 0:00:55.1]}
59. Ra1+ {[%clk 0:00:23]} 59... f1=Q {[%clk 0:00:54.9]} 60. Rxf1+ {[%clk
0:00:23.4]} 60... Kxf1 {[%clk 0:00:55.8]} 1/2-1/2

[Event "Early-Titled-Tuesday-Blitz-December-26-2023"]
[Site "Chess.com"]
[Date "2023.12.26"]
[Round "9"]
[White "MIss_MIaMI"]
[Black "Kimster98"]
[Result "0-1"]
[WhiteElo "2428"]
[BlackElo "2576"]
[TimeControl "180+1"]
[EndTime "9:45:21 PST"]
[Termination "Kimster98 won by resignation"]

1. e4 {[%clk 0:02:59.9]} 1... c5 {[%clk 0:02:59.5]} 2. Nf3 {[%clk 0:03:00.2]}
2... e6 {[%clk 0:02:59.6]} 3. d4 {[%clk 0:03:00.8]} 3... cxd4 {[%clk 0:03:00.5]}
4. c3 {[%clk 0:03:01.4]} 4... Qa5 {[%clk 0:02:49.5]} 5. Nxd4 {[%clk 0:02:58.4]}
5... Nc6 {[%clk 0:02:47.4]} 6. Nxc6 {[%clk 0:02:55.8]} 6... bxc6 {[%clk
0:02:46.6]} 7. Bd3 {[%clk 0:02:56.5]} 7... d5 {[%clk 0:02:39.2]} 8. O-O {[%clk
0:02:56.2]} 8... Nf6 {[%clk 0:02:37.7]} 9. Nd2 {[%clk 0:02:52]} 9... Ba6 {[%clk
0:02:31.7]} 10. Qe2 {[%clk 0:02:48.5]} 10... Bxd3 {[%clk 0:02:28.7]} 11. Qxd3
{[%clk 0:02:49.4]} 11... Be7 {[%clk 0:02:29.2]} 12. f3 {[%clk 0:02:35.8]} 12...
O-O {[%clk 0:02:27.7]} 13. Kh1 {[%clk 0:02:35.8]} 13... Rfd8 {[%clk 0:02:20.7]}
14. e5 {[%clk 0:02:28]} 14... Nd7 {[%clk 0:02:19.3]} 15. f4 {[%clk 0:02:28.2]}
15... Qb5 {[%clk 0:02:17.4]} 16. Qf3 {[%clk 0:02:27.4]} 16... Nc5 {[%clk
0:02:15.1]} 17. h3 {[%clk 0:01:58.7]} 17... Qd3 {[%clk 0:02:13.7]} 18. b3 {[%clk
0:01:56.1]} 18... Qxf3 {[%clk 0:02:10.2]} 19. Nxf3 {[%clk 0:01:56.9]} 19... Ne4
{[%clk 0:02:08.6]} 20. Bb2 {[%clk 0:01:54.5]} 20... a5 {[%clk 0:02:06.9]} 21.
Kh2 {[%clk 0:01:48.4]} 21... a4 {[%clk 0:02:06.6]} 22. Nd4 {[%clk 0:01:48.5]}
22... Rdc8 {[%clk 0:02:06.4]} 23. f5 {[%clk 0:01:38.3]} 23... c5 {[%clk
0:02:00.9]} 24. fxe6 {[%clk 0:01:29.9]} 24... cxd4 {[%clk 0:01:57.2]} 25. exf7+
{[%clk 0:01:30]} 25... Kf8 {[%clk 0:01:56.3]} 26. cxd4 {[%clk 0:01:30.8]} 26...
Rc2 {[%clk 0:01:55.7]} 27. Rfb1 {[%clk 0:00:40.2]} 27... Nd2 {[%clk 0:01:50.7]}
28. Bc1 {[%clk 0:00:36.8]} 28... Nxb1 {[%clk 0:01:49.6]} 29. Rxb1 {[%clk
0:00:37.7]} 29... axb3 {[%clk 0:01:47.2]} 30. axb3 {[%clk 0:00:38.6]} 30... Kxf7
{[%clk 0:01:47.4]} 31. b4 {[%clk 0:00:24.8]} 31... Raa2 {[%clk 0:01:38.9]} 32.
b5 {[%clk 0:00:21.8]} 32... Rxg2+ {[%clk 0:01:38.7]} 33. Kh1 {[%clk 0:00:22.4]}
33... Rh2+ {[%clk 0:01:38.9]} 34. Kg1 {[%clk 0:00:23.1]} 34... Rag2+ {[%clk
0:01:38.7]} 35. Kf1 {[%clk 0:00:23.8]} 35... Rc2 {[%clk 0:01:12.1]} 36. Kg1
{[%clk 0:00:19.5]} 36... Rhg2+ {[%clk 0:01:11.2]} 37. Kh1 {[%clk 0:00:17.4]}
37... Rg6 {[%clk 0:01:10.5]} 38. b6 {[%clk 0:00:14.7]} 38... Rxb6 {[%clk
0:01:09.2]} 39. Rxb6 {[%clk 0:00:14.1]} 39... Rxc1+ {[%clk 0:01:09.9]} 40. Kg2
{[%clk 0:00:14.7]} 40... Rc4 {[%clk 0:01:10.6]} 41. e6+ {[%clk 0:00:12]} 41...
Kf6 {[%clk 0:01:10.4]} 42. Kg3 {[%clk 0:00:10.1]} 42... Rxd4 {[%clk 0:01:10]}
43. Rb5 {[%clk 0:00:10.8]} 43... Kxe6 {[%clk 0:01:09.5]} 44. Rb6+ {[%clk
0:00:11]} 44... Bd6+ {[%clk 0:01:10]} 45. Kf3 {[%clk 0:00:10.9]} 45... Rd3+
{[%clk 0:01:10.2]} 46. Kg4 {[%clk 0:00:11.2]} 46... g6 {[%clk 0:01:08.3]} 47.
Kh4 {[%clk 0:00:08.6]} 47... h6 {[%clk 0:01:05]} 48. Kg4 {[%clk 0:00:07.7]}
48... Rd4+ {[%clk 0:01:02.7]} 49. Kf3 {[%clk 0:00:07.4]} 49... Ke5 {[%clk
0:01:03.2]} 50. Rb3 {[%clk 0:00:06.9]} 50... Kf5 {[%clk 0:01:02.8]} 51. Kg2
{[%clk 0:00:06.4]} 51... Rc4 {[%clk 0:01:02.1]} 52. Rf3+ {[%clk 0:00:05.7]}
52... Bf4 {[%clk 0:01:02.3]} 53. Ra3 {[%clk 0:00:06.2]} 53... d4 {[%clk
0:01:02.4]} 54. Kf3 {[%clk 0:00:06.9]} 54... Rc3+ {[%clk 0:01:02.4]} 55. Rxc3
{[%clk 0:00:07.6]} 55... dxc3 {[%clk 0:01:03.3]} 56. Ke2 {[%clk 0:00:08.2]}
56... c2 {[%clk 0:01:03.2]} 0-1